bitfinex/quotes_SOLUSD_20251030
["timestamp","ask_amount","ask_price","bid_price","bid_amount"]
[1761858698178,7.71048491,182.87,182.83,0.71]
[1761858698369,0.71,182.86,182.82,69.41180158]
[1761858699567,13.66681114,182.93,182.85,2.24202282]
[1761858699764,0.71,182.89,182.87,2.24202282]
[1761858701398,0.71,182.89,182.87,7.71033796]
[1761858702093,4.08164999,182.91,182.86,2.24202282]
[1761858702272,0.71,182.9,182.86,2.24202282]
[1761858703480,0.71,182.9,182.86,7.71047134]
[1761858704275,22.83402282,182.87,182.82,2.24202282]
[1761858704476,2.24202282,182.86,182.81,85.86000238]
[1761858704684,2.95202282,182.86,182.81,85.86000238]
[1761858704893,0.71,182.85,182.81,85.86000238]
[1761858705091,0.71,182.85,182.81,86.57000238]
[1761858705269,0.71,182.85,182.81,70.12218309]
[1761858705472,2.95202282,182.85,182.82,5.46749476]
[1761858706003,0.71,182.85,182.81,7.71218309]
[1761858706192,0.71,182.85,182.81,21.38758377]
[1761858706496,21.302,182.85,182.81,21.38758377]
[1761858707084,0.71,182.85,182.81,21.38758377]
[1761858707287,8.42047345,182.87,182.81,22.09758377]
[1761858707486,0.71,182.86,182.81,22.09758377]
[1761858707694,0.71,182.9,182.85,2.24202282]
[1761858707892,0.71,182.9,182.87,2.24202282]
[1761858709102,0.71,182.9,182.87,7.7101624]
[1761858709303,21.302,182.9,182.87,7.7101624]
[1761858710105,0.71,182.89,182.87,7.7101624]
[1761858713794,0.71,182.89,182.87,69.4101624]
[1761858713997,0.71,182.92,182.87,69.4101624]
[1761858714312,0.71,182.91,182.89,2.24202282]
[1761858714773,20.592,182.93,182.89,2.24202282]
[1761858714974,0.71,182.92,182.89,2.24202282]
[1761858715903,0.71,182.92,182.89,7.70969491]
[1761858716110,2.95202282,182.92,182.88,16.44241045]
[1761858716278,0.71,182.92,182.87,63.94202282]
[1761858716478,0.71,182.91,182.88,2.24202282]
[1761858717790,0.71,182.91,182.88,7.70996053]
[1761858719585,0.71,182.91,182.88,69.40996053]
[1761858719907,0.71,182.91,182.88,63.94202282]
[1761858720409,6.17719969,182.91,182.88,61.7]
[1761858720585,0.71,182.91,182.88,61.7]
[1761858720906,0.69,182.9,182.88,61.7]
[1761858721289,0.69,182.9,182.88,67.16806354]
[1761858722874,0.69,182.9,182.88,69.41008636]
[1761858723306,0.69,182.9,182.88,61.7]
[1761858724309,5.46806649,182.88,182.81,63.94202282]
[1761858724608,2.24202282,182.86,182.81,80.39074393]
[1761858724786,0.69,182.85,182.82,2.24202282]
[1761858724985,0.69,182.85,182.81,80.39074393]
[1761858725196,0.69,182.85,182.81,85.86088364]
[1761858725505,0.69,182.85,182.81,7.71216253]
[1761858725686,0.69,182.85,182.81,13.18055932]
[1761858725886,0.69,182.85,182.81,7.71216253]
[1761858727386,5.4668345,182.93,182.84,3.50676451]
[1761858727592,4.77870004,182.92,182.88,3.50676451]
[1761858727788,0.69,182.91,182.88,3.50676451]
[1761858728695,4.08870004,182.92,182.88,9.66480061]
[1761858729094,0.69,182.91,182.88,8.97480061]
[1761858729302,21.282,182.91,182.88,8.97480061]
[1761858730817,21.282,182.91,182.89,3.50676451]
[1761858731604,0.69,182.9,182.88,3.50676451]
[1761858733939,20.592,182.91,182.88,3.50676451]
[1761858734220,21.282,182.91,182.88,3.50676451]
[1761858734733,0.69,182.9,182.88,3.50676451]
[1761858735220,44.32522725,182.94,182.89,9.66453202]
[1761858735420,4.09197855,182.93,182.91,3.50676451]
[1761858735601,0.71,182.93,182.9,3.50676451]
[1761858736297,4.80236785,182.93,182.9,3.50676451]
[1761858736702,0.71,182.92,182.88,70.67475022]
[1761858736921,4.09236785,182.91,182.87,65.20676451]
[1761858737099,4.09236785,182.91,182.87,70.67505111]
[1761858737297,0.71,182.9,182.87,70.67505111]
[1761858740023,20.592,182.87,182.81,61.7]
[1761858740321,3.50676451,182.85,182.81,5.47009581]
[1761858740705,0.71,182.84,182.81,5.47009581]
[1761858740905,4.09469994,182.83,182.8,5.47045951]
[1761858741214,0.71,182.84,182.8,6.13045951]
[1761858741411,4.09464595,182.83,182.8,5.47045951]
[1761858741620,0.71,182.84,182.8,5.47045951]
[1761858741814,4.09464556,182.83,182.8,5.47045951]
[1761858742004,0.71,182.84,182.8,6.13045951]
[1761858742203,4.09464595,182.83,182.8,6.13045951]
[1761858742406,0.71,182.84,182.8,6.13045951]
[1761858742612,4.09459219,182.83,182.8,9.63722402]
[1761858742809,4.21676451,182.84,182.79,17.18300606]
[1761858743026,4.8047336,182.83,182.79,17.18300606]
[1761858743227,0.71,182.83,182.79,17.18300606]
[1761858744130,3.50676451,182.84,182.79,23.31376485]
[1761858744331,4.09417363,182.83,182.79,23.31376485]
[1761858744625,0.71,182.84,182.79,23.31376485]
[1761858744829,4.09428375,182.83,182.79,23.31376485]
[1761858745013,0.71,182.84,182.79,19.80700034]
[1761858745209,3.50676451,182.82,182.77,5.47135744]
[1761858745415,3.50676451,182.82,182.77,8.97812195]
[1761858745625,4.09391368,182.81,182.77,22.65651555]
[1761858745831,0.71,182.81,182.77,5.47135744]
[1761858746007,0.71,182.8,182.77,67.17135744]
[1761858746330,4.09276888,182.81,182.77,67.83135744]
[1761858746528,0.71,182.81,182.77,71.33812195]
[1761858747111,0.71,182.81,182.77,67.17135744]
[1761858747737,0.71,182.81,182.76,3.50676451]
[1761858747738,3.50676451,182.78,182.73,3.50676451]
[1761858747913,3.50676451,182.78,182.73,65.20676451]
[1761858748228,0.71,182.77,182.73,70.67931964]
[1761858748432,0.71,182.77,182.73,65.20676451]
[1761858748605,21.302,182.77,182.73,3.50676451]
[1761858748810,21.302,182.77,182.73,8.97931963]
[1761858749016,26.0633888,182.77,182.73,5.47255512]
[1761858749218,0.67,182.76,182.73,8.97931963]
[1761858751730,0.67,182.76,182.72,68.59098999]
[1761858751916,0.67,182.76,182.72,10.3977545]
[1761858752115,9.64855062,182.76,182.72,6.89098999]
[1761858752326,3.50676451,182.75,182.72,6.89098999]
[1761858752539,4.17676451,182.75,182.72,6.89098999]
[1761858752712,0.67,182.74,182.72,6.89098999]
[1761858753946,20.592,182.76,182.73,3.50676451]
[1761858754115,20.592,182.75,182.74,3.50676451]
[1761858754836,0.67,182.82,182.74,65.88676451]
[1761858755038,4.0782682,182.83,182.81,3.50676451]
[1761858755237,5.46806649,182.88,182.82,3.50676451]
[1761858755428,0.67,182.86,182.84,3.50676451]
[1761858755624,0.67,182.86,182.83,3.50676451]
[1761858755839,20.592,182.84,182.83,3.50676451]
[1761858756039,5.46799057,182.89,182.83,8.97632639]
[1761858756345,4.74661549,182.88,182.86,3.50676451]
[1761858756518,0.67,182.88,182.86,3.50676451]
[1761858756918,20.592,182.87,182.86,3.50676451]
[1761858757221,20.592,182.86,182.77,5.47135744]
[1761858757419,3.50676451,182.83,182.77,8.97812195]
[1761858757639,21.262,182.86,182.77,8.97812195]
[1761858757640,21.262,182.86,182.82,3.50676451]
[1761858757834,5.46856186,182.87,182.84,3.50676451]
[1761858758029,0.67,182.86,182.83,3.50676451]
[1761858758415,5.46856186,182.87,182.83,3.50676451]
[1761858758619,26.06056186,182.87,182.83,4.18676451]
[1761858758920,26.06056186,182.87,182.83,3.50676451]
[1761858759120,0.67,182.86,182.83,3.50676451]
[1761858760246,0.67,182.93,182.86,9.78882769]
[1761858760453,0.67,182.93,182.9,3.50676451]
[1761858760623,4.17676451,182.92,182.86,3.50676451]
[1761858761156,3.50676451,182.92,182.86,3.50676451]
[1761858761365,3.50676451,182.92,182.85,0.68]
[1761858761366,4.17676451,182.91,182.85,3.50676451]
[1761858762049,4.17676451,182.91,182.86,5.46866455]
[1761858762454,0.67,182.9,182.86,8.97542906]
[1761858764271,0.67,182.9,182.87,3.50676451]
[1761858765470,0.67,182.9,182.87,8.97498142]
[1761858765876,0.67,182.9,182.87,5.46821691]
[1761858766056,0.67,182.9,182.87,8.97498142]
[1761858768587,64.91722725,182.94,182.88,3.50676451]
[1761858768761,44.99522725,182.94,182.9,3.50676451]
[1761858769076,44.99522725,182.94,182.91,3.50676451]
[1761858769280,44.32522725,182.94,182.93,3.50676451]
[1761858769583,44.32522725,182.94,182.92,3.50676451]
[1761858769952,0.67,182.93,182.92,3.50676451]
[1761858770349,44.32522725,182.94,182.92,8.97361234]
[1761858770569,44.99522725,182.94,182.92,8.97361234]
[1761858771059,44.99522725,182.94,182.91,3.50676451]
[1761858771270,0.67,182.93,182.9,8.97423307]
[1761858774778,0.67,182.93,182.91,3.50676451]
[1761858775976,44.32522725,182.94,182.92,3.50676451]
[1761858776198,0.67,182.93,182.91,65.20676451]
[1761858776377,0.67,182.93,182.91,61.7]
[1761858779881,44.32522725,182.94,182.91,67.16713901]
[1761858780098,44.99522725,182.94,182.91,67.16713901]
[1761858780298,0.67,182.93,182.9,150.0]
[1761858780706,0.67,182.93,182.9,158.97422807]
[1761858780901,3.50676451,182.92,182.9,150.0]
[1761858781092,8.97367373,182.92,182.9,150.0]
[1761858781403,4.17676451,182.91,182.9,150.0]
[1761858781604,4.17676451,182.91,182.9,148.53]
[1761858781775,18.03782333,182.91,182.9,148.53]
[1761858783097,23.50565187,182.91,182.9,148.53]
[1761858783498,19.99888736,182.91,182.9,148.53]
[1761858783804,23.50565187,182.91,182.9,148.53]
[1761858785596,30.38082769,182.87,182.76,0.65]
[1761858785807,3.50676451,182.77,182.76,0.65]
[1761858787300,3.50676451,182.79,182.76,0.65]
[1761858787688,3.50676451,182.79,182.76,6.12159723]
[1761858787897,24.09876451,182.8,182.76,6.12159723]
[1761858788104,24.09876451,182.8,182.77,0.65]
[1761858788414,20.592,182.8,182.77,0.65]
[1761858788995,20.592,182.8,182.79,3.50676451]
[1761858789400,20.592,182.8,182.79,0.65]
[1761858789599,7.71418197,182.84,182.79,0.65]
[1761858789805,28.30618197,182.84,182.79,0.65]
[1761858791583,26.06154192,182.84,182.79,0.65]
[1761858791803,28.30606275,182.84,182.79,0.65]
[1761858792004,27.80606275,182.84,182.79,0.65]
[1761858792786,25.5614227,182.84,182.79,6.12074062]
[1761858792990,27.80606275,182.84,182.79,6.12074062]
[1761858793303,27.80606275,182.84,182.8,0.65]
[1761858794087,20.092,182.84,182.83,2.24464005]
[1761858794284,20.092,182.84,182.82,2.24464005]
[1761858794711,20.092,182.84,182.83,0.65]
[1761858796213,26.06041911,182.87,182.83,0.65]
[1761858796812,47.18492088,182.94,182.86,2.24464005]
[1761858797016,4.07372907,182.93,182.88,2.24464005]
[1761858797209,20.592,182.91,182.89,2.24464005]
[1761858797513,52.03624544,182.94,182.9,0.68]
[1761858797711,4.07475655,182.93,182.9,0.68]
[1761858798020,44.32522725,182.94,182.91,2.24464005]
[1761858798501,44.32522725,182.94,182.93,2.24464005]
[1761858799026,44.32522725,182.94,182.93,2.92464005]
[1761858799392,44.32522725,182.94,182.93,6.38702553]
[1761858800827,44.32522725,182.94,182.93,11.85359744]
[1761858803201,44.32522725,182.94,182.93,0.68]
[1761858803403,50.03225278,182.94,182.9,0.68]
[1761858803606,44.32522725,182.94,182.93,5.70702553]
[1761858803836,44.32522725,182.94,182.93,6.38702553]
[1761858804924,44.32522725,182.94,182.93,11.85359744]
[1761858805538,50.03225278,182.94,182.89,67.84775805]
[1761858805709,5.70702553,182.93,182.9,0.68]
[1761858806029,50.03225278,182.94,182.9,0.68]
[1761858806636,44.32522725,182.94,182.9,0.68]
[1761858807142,50.03225278,182.94,182.9,0.68]
[1761858808131,50.03225278,182.94,182.9,6.14743293]
[1761858808323,44.32522725,182.94,182.91,0.68]
[1761858808524,50.03225278,182.94,182.91,0.68]
[1761858809439,44.32522725,182.94,182.91,11.85414983]
[1761858809741,44.32522725,182.94,182.92,5.70702553]
[1761858809921,44.32522725,182.94,182.93,5.70702553]
[1761858810118,44.32522725,182.94,182.93,6.42702553]
[1761858810840,44.32522725,182.94,182.93,0.72]
[1761858811627,44.32522725,182.94,182.89,23.45819274]
[1761858811628,50.60225278,182.94,182.89,0.72]
[1761858811838,5.70702553,182.92,182.89,0.72]
[1761858812941,5.70702553,182.92,182.87,5.46832707]
[1761858812942,5.70702553,182.9,182.87,0.72]
[1761858813128,5.70702553,182.89,182.86,0.72]
[1761858813327,5.70702553,182.9,182.86,6.18855617]
[1761858813630,26.29902553,182.91,182.86,6.18855617]
[1761858813832,26.29902553,182.91,182.87,0.72]
[1761858814152,5.70702553,182.9,182.87,0.72]
[1761858815327,11.17450775,182.9,182.85,5.46891015]
[1761858815534,5.70702553,182.88,182.83,62.42]
[1761858815750,5.70702553,182.87,182.83,0.72]
[1761858816051,5.70702553,182.87,182.84,0.72]
[1761858817036,5.70702553,182.88,182.84,0.72]
[1761858817437,5.46798142,182.89,182.84,0.72]
[1761858817438,5.70702553,182.87,182.84,0.72]
[1761858817950,5.70702553,182.85,182.81,0.72]
[1761858818129,5.70702553,182.84,182.81,0.72]
[1761858818827,5.70702553,182.85,182.81,0.72]
[1761858819434,11.1760627,182.85,182.81,6.19014455]
[1761858819829,5.70702553,182.84,182.81,0.72]
[1761858822770,20.592,182.84,182.81,6.19007709]
[1761858823132,20.592,182.84,182.82,0.72]
[1761858824144,20.592,182.85,182.82,0.72]
[1761858825336,20.592,182.87,182.82,6.18983442]
[1761858825537,20.592,182.86,182.83,0.72]
[1761858826660,31.76751794,182.87,182.83,0.72]
[1761858827461,28.30455401,182.87,182.83,0.72]
[1761858827862,28.30455401,182.87,182.83,6.18948927]
[1761858828069,28.30455401,182.87,182.83,0.72]
[1761858828366,28.30455401,182.87,182.79,13.67620615]
[1761858828367,22.8360616,182.87,182.81,2.2440616]
[1761858828572,22.8360616,182.87,182.84,0.72]
[1761858829969,20.592,182.87,182.84,70.13323601]
[1761858830156,20.592,182.87,182.85,0.72]
[1761858831358,22.8360616,182.87,182.85,0.72]
[1761858831554,20.592,182.87,182.85,0.72]
[1761858831772,22.8360616,182.87,182.85,0.72]
[1761858833460,22.8360616,182.87,182.84,67.16917441]
[1761858833662,2.2440616,182.86,182.84,67.88917441]
[1761858833862,2.2440616,182.86,182.85,0.72]
[1761858834069,2.2440616,182.86,182.81,15.91883426]
[1761858834070,2.2440616,182.86,182.83,0.72]
[1761858834266,2.2440616,182.84,182.82,0.72]
[1761858834963,2.2440616,182.84,182.82,6.18975602]
[1761858835774,2.2440616,182.84,182.83,0.72]
[1761858838462,2.2440616,182.85,182.82,5.46975602]
[1761858838687,2.2440616,182.85,182.82,6.18975602]
[1761858839801,2.2440616,182.85,182.82,67.88975602]
[1761858840211,2.2440616,182.83,182.79,67.17046849]
[1761858840508,44.32522725,182.94,182.82,20.592]
[1761858840675,6.32429047,182.93,182.82,30.38082769]
[1761858840874,7.71069661,182.93,182.88,2.2440616]
[1761858841174,2.2440616,182.93,182.89,0.72]
[1761858841374,67.16128885,182.94,182.89,0.72]
[1761858841574,4.08033967,182.93,182.9,2.2440616]
[1761858841778,4.08033967,182.93,182.9,0.72]
[1761858842986,4.08033967,182.93,182.9,8.43137179]
[1761858843181,4.08033967,182.93,182.91,0.72]
[1761858844399,44.32522725,182.94,182.92,2.2440616]
[1761858844600,44.32522725,182.94,182.9,5.46731019]
[1761858844601,44.32522725,182.94,182.93,2.9640616]
[1761858844904,44.32522725,182.94,182.93,8.43063351]
[1761858845278,43.60522725,182.94,182.93,8.43063351]
[1761858845478,43.60522725,182.94,182.93,6.18657191]
[1761858845697,43.60522725,182.94,182.93,8.43063351]
[1761858849379,44.26522725,182.94,182.88,5.46779864]
[1761858849595,43.60522725,182.94,182.92,3.50204059]
[1761858849999,43.60522725,182.94,182.91,3.50204059]
[1761858850407,43.60522725,182.94,182.91,65.20204059]
[1761858850807,43.60522725,182.94,182.91,61.7]
[1761858850993,43.60522725,182.94,182.91,65.20204059]
[1761858851189,4.16204059,182.93,182.86,6.18839865]
[1761858851408,0.66,182.93,182.88,3.50204059]
[1761858851618,0.66,182.93,182.87,6.18815447]
[1761858851811,0.66,182.93,182.88,3.50204059]
[1761858852216,0.66,182.93,182.88,4.22204059]
[1761858852517,9.62865327,182.93,182.88,4.22204059]
[1761858852724,9.62865327,182.93,182.87,3.50204059]
[1761858853018,0.66,182.92,182.87,3.50204059]
[1761858853203,0.66,182.92,182.87,5.46834623]
[1761858853395,0.66,182.92,182.87,9.69038682]
[1761858854824,9.62902943,182.92,182.87,5.46834623]
[1761858855041,9.62902943,182.92,182.86,8.97065262]
[1761858855199,24.09404059,182.89,182.82,0.72]
[1761858855398,3.50204059,182.88,182.82,9.69190165]
[1761858855719,0.67,182.88,182.83,3.50204059]
[1761858855919,0.67,182.88,182.82,67.88986106]
[1761858855920,9.64011891,182.88,182.82,67.88986106]
[1761858856136,9.64011891,182.88,182.79,0.68]
[1761858856137,20.592,182.85,182.79,0.68]
[1761858856300,20.592,182.85,182.81,3.50204059]
[1761858856500,21.262,182.85,182.81,4.18204059]
[1761858857011,21.262,182.85,182.81,0.68]
[1761858857202,20.592,182.85,182.8,3.50204059]
[1761858857404,0.67,182.84,182.8,8.6827393]
[1761858857623,0.67,182.84,182.8,14.15297116]
[1761858858211,29.9447393,182.84,182.78,5.47068283]
[1761858858412,8.6827393,182.83,182.76,6.15165599]
[1761858858602,8.6827393,182.82,182.76,14.83439529]
[1761858858922,9.3527393,182.82,182.76,14.83439529]
[1761858859519,14.15264101,182.82,182.76,14.83439529]
[1761858859830,0.67,182.81,182.77,8.6827393]
[1761858860032,0.67,182.87,182.8,8.6827393]
[1761858860219,29.2747393,182.82,182.76,8.6827393]
[1761858860525,29.2747393,182.82,182.75,6.15189313]
[1761858860526,8.6827393,182.8,182.74,5.47206578]
[1761858860727,8.6827393,182.8,182.74,14.15480508]
[1761858860897,0.67,182.79,182.74,14.15480508]
[1761858861099,9.3527393,182.79,182.74,5.47206578]
[1761858861311,8.6827393,182.77,182.72,6.89098999]
[1761858861515,8.6827393,182.77,182.72,13.04378084]
[1761858861728,9.3527393,182.77,182.72,13.04378084]
[1761858862028,0.67,182.77,182.73,0.68]
[1761858862610,0.67,182.77,182.72,21.04652014]
[1761858862812,0.67,182.77,182.72,21.72652014]
[1761858863238,8.6827393,182.79,182.73,9.3627393]
[1761858863439,0.67,182.79,182.75,8.6827393]
[1761858863627,20.592,182.8,182.76,5.47165681]
[1761858863819,21.262,182.8,182.77,8.6827393]
[1761858864018,0.67,182.79,182.76,14.15439611]
[1761858864617,20.592,182.77,182.72,6.89098999]
[1761858864833,20.592,182.77,182.73,8.6827393]
[1761858865016,21.262,182.77,182.73,8.6827393]
[1761858865221,21.262,182.77,182.72,16.25372929]
[1761858865838,21.262,182.77,182.72,21.72635598]
[1761858867241,0.67,182.76,182.72,21.04635598]
[1761858867442,9.3527393,182.76,182.72,6.89098999]
[1761858867743,14.82461203,182.76,182.72,6.89098999]
[1761858867928,0.67,182.75,182.72,12.36378077]
[1761858868524,0.67,182.75,182.72,6.89098999]
[1761858868728,0.67,182.75,182.72,12.36373579]
[1761858869528,8.6827393,182.77,182.72,12.36373579]
[1761858869727,8.6827393,182.77,182.72,21.04647509]
[1761858870412,9.78882769,182.82,182.72,21.04647509]
[1761858870614,8.6827393,182.77,182.72,21.04647509]
[1761858871016,13.67465266,182.82,182.73,8.6827393]
[1761858871234,8.6827393,182.8,182.74,8.6827393]
[1761858871639,21.212,182.8,182.74,8.6827393]
[1761858871821,21.212,182.8,182.74,14.15470232]
[1761858871822,35.36535549,182.8,182.74,14.15470232]
[1761858872214,21.212,182.8,182.75,8.6827393]
[1761858872418,26.68246257,182.8,182.75,8.6827393]
[1761858872618,0.62,182.82,182.78,8.6827393]
[1761858872862,0.62,182.82,182.79,8.6827393]
[1761858873068,5.46866455,182.86,182.81,8.6827393]
[1761858873233,5.46866455,182.86,182.82,8.6827393]
[1761858873563,26.68066455,182.86,182.81,8.6827393]
[1761858873757,26.06066455,182.86,182.81,8.6827393]
[1761858873923,8.6827393,182.87,182.81,8.6827393]
[1761858873924,6.0891753,182.85,182.81,8.6827393]
[1761858874562,0.62,182.84,182.79,9.3427393]
[1761858874718,0.62,182.84,182.79,8.6827393]
[1761858875214,0.62,182.84,182.8,8.6827393]
[1761858876353,20.592,182.86,182.8,14.15312653]
[1761858876527,52.85916956,182.93,182.78,5.47086555]
[1761858876528,0.62,182.85,182.78,5.47086555]
[1761858876734,8.6827393,182.82,182.77,16.45142716]
[1761858876945,8.6827393,182.81,182.75,9.3427393]
[1761858877334,8.6827393,182.81,182.74,8.6827393]
[1761858877335,8.6827393,182.8,182.74,8.6827393]
[1761858877942,8.6827393,182.8,182.74,9.3427393]
[1761858878133,9.3027393,182.81,182.75,14.15465952]
[1761858878544,9.3027393,182.81,182.75,14.81465952]
[1761858878945,8.6827393,182.8,182.75,67.17192022]
[1761858879263,9.3027393,182.8,182.75,61.7]
[1761858879761,9.3027393,182.8,182.75,62.36]
[1761858880148,9.3027393,182.8,182.75,67.83172364]
[1761858880668,14.7732088,182.8,182.75,67.17172364]
[1761858880857,14.15297352,182.81,182.75,76.51446294]
[1761858881238,8.6827393,182.8,182.75,67.83172364]
[1761858881863,8.6827393,182.78,182.75,61.7]
[1761858882436,14.1538139,182.78,182.74,5.47216453]
[1761858883051,8.6827393,182.75,182.73,61.7]
[1761858883246,8.6827393,182.77,182.72,74.06382732]
[1761858883453,8.6827393,182.74,182.72,6.89098999]
[1761858884266,14.77508047,182.74,182.72,6.89098999]
[1761858884565,8.6827393,182.73,182.72,6.89098999]
[1761858885550,9.3027393,182.73,182.72,6.89098999]
[1761858886450,8.6827393,182.73,182.72,6.89098999]
[1761858887637,20.592,182.73,182.72,6.89098999]
[1761858887850,14.15440785,182.76,182.72,7.55098999]
[1761858888164,29.8947393,182.76,182.72,6.89098999]
[1761858888463,20.592,182.76,182.73,0.66]
[1761858889641,20.592,182.76,182.73,9.3427393]
[1761858890166,20.592,182.76,182.73,0.66]
[1761858890751,35.36641029,182.76,182.72,6.89098999]
[1761858891856,34.74641029,182.76,182.72,6.89098999]
[1761858892056,9.3027393,182.75,182.72,6.89098999]
[1761858892271,20.592,182.73,182.72,6.89098999]
[1761858892671,34.74729443,182.73,182.72,6.89098999]
[1761858892980,26.06455513,182.73,182.72,6.89098999]
[1761858893151,34.74729443,182.73,182.72,6.89098999]
[1761858894144,26.68455513,182.73,182.72,6.89098999]
[1761858894371,38.82119678,182.73,182.72,6.89098999]
[1761858894678,39.4411554,182.73,182.72,6.89098999]
[1761858896469,33.34860027,182.73,182.72,6.89098999]
[1761858897360,33.96860027,182.73,182.72,6.89098999]
[1761858898055,39.4411554,182.73,182.72,6.89098999]
[1761858898781,39.4411554,182.73,182.72,1e-08]
[1761858898782,49.22998309,182.73,182.72,1e-08]
[1761858898952,20.592,182.69,182.66,0.2]
[1761858899151,8.6827393,182.67,182.66,0.2]
[1761858899349,12.76214226,182.67,182.66,0.2]
[1761858899548,13.38214226,182.67,182.66,0.2]
[1761858900283,18.85649491,182.67,182.66,0.2]
[1761858900454,18.23649491,182.67,182.66,0.2]
[1761858900858,18.85649491,182.67,182.66,0.2]
[1761858902183,9.78882769,182.66,182.65,0.2]
[1761858902358,23.17096995,182.66,182.65,0.2]
[1761858903859,13.38214226,182.66,182.65,0.2]
[1761858904253,18.85679461,182.66,182.65,0.2]
[1761858904670,12.76214226,182.66,182.65,0.2]
[1761858904875,18.85679461,182.66,182.65,0.2]
[1761858905387,18.85144959,182.66,182.65,0.2]
[1761858906488,9.54871029,182.66,182.65,0.2]
[1761858906679,18.85144959,182.66,182.65,0.2]
[1761858907169,13.68250947,182.72,182.65,0.86]
[1761858907369,8.6827393,182.69,182.65,0.86]
[1761858907614,8.6827393,182.72,182.67,8.6827393]
[1761858907766,20.592,182.69,182.68,0.66]
[1761858907965,8.6827393,182.72,182.68,0.66]
[1761858908172,20.592,182.69,182.68,0.66]
[1761858908365,20.592,182.69,182.66,0.66]
[1761858908566,20.592,182.69,182.67,0.66]
[1761858908771,6.09195622,182.75,182.68,8.6827393]
[1761858908973,8.6827393,182.73,182.67,9.3427393]
[1761858909189,20.592,182.7,182.67,9.3427393]
[1761858909388,5.47195622,182.75,182.66,5.72289087]
[1761858909572,4.06865151,182.74,182.7,5.72289087]
[1761858909778,20.592,182.72,182.7,5.72289087]
[1761858910094,20.592,182.72,182.65,0.2]
[1761858910095,26.31489087,182.71,182.65,0.2]
[1761858910390,15.51171856,182.66,182.65,0.2]
[1761858910695,9.79176345,182.66,182.65,0.2]
[1761858910867,31.00376345,182.66,182.65,0.2]
[1761858911066,4.06887258,182.66,182.65,0.2]
[1761858911286,20.592,182.67,182.65,0.2]
[1761858911501,26.31489087,182.67,182.65,0.2]
[1761858911710,20.592,182.67,182.65,0.2]
[1761858912009,5.47320729,182.71,182.66,0.66]
[1761858912180,5.72289087,182.69,182.65,0.2]
[1761858912381,26.0657405,182.7,182.65,6.58289087]
[1761858912590,26.0657405,182.7,182.66,0.66]
[1761858913099,20.592,182.66,182.65,0.2]
[1761858913282,26.31489087,182.66,182.65,0.2]
[1761858913486,20.592,182.66,182.65,0.2]
[1761858913789,5.72289087,182.67,182.65,0.2]
[1761858914307,11.19747269,182.67,182.65,0.2]
[1761858914508,20.592,182.67,182.65,0.2]
[1761858914707,31.78924352,182.67,182.65,0.2]
[1761858916187,20.592,182.67,182.65,0.2]
[1761858916383,26.06646529,182.67,182.65,0.2]
[1761858916798,26.06651388,182.67,182.65,0.2]
[1761858917407,20.592,182.67,182.65,0.2]
[1761858917612,5.72289087,182.71,182.66,0.68]
[1761858917794,5.47285464,182.72,182.68,5.72289087]
[1761858918109,13.67839972,182.77,182.7,5.72289087]
[1761858918310,9.53597192,182.76,182.71,0.68]
[1761858918484,20.592,182.73,182.71,0.68]
[1761858919198,5.47165681,182.76,182.71,0.68]
[1761858919400,20.592,182.73,182.71,0.68]
[1761858919800,20.592,182.73,182.71,6.40289087]
[1761858919997,5.47165681,182.76,182.72,0.68]
[1761858920404,20.592,182.74,182.72,0.68]
[1761858920612,20.592,182.74,182.72,6.40289087]
[1761858920918,20.592,182.74,182.72,0.68]
[1761858921109,20.592,182.74,182.71,5.72289087]
[1761858921110,20.592,182.74,182.73,0.68]
[1761858921612,5.47135744,182.77,182.73,6.40289087]
[1761858921812,5.47135744,182.77,182.74,0.68]
[1761858922200,20.592,182.75,182.74,0.68]
[1761858923307,20.592,182.75,182.74,11.87514653]
[1761858923509,14.29591008,182.81,182.74,11.87514653]
[1761858923711,4.07231313,182.8,182.75,6.40289087]
[1761858923913,4.07231313,182.79,182.75,6.40289087]